bitfinex/quotes_ETHUSD_20250523
["timestamp","ask_amount","ask_price","bid_price","bid_amount"]
[1747973881737,3.61874593,2709.1,2708.7,0.1405]
[1747973881946,3.69101683,2709.3,2708.7,0.1405]
[1747973882157,3.69127362,2709.1,2708.7,0.1405]
[1747973882316,3.69106692,2709.3,2708.7,3.83229053]
[1747973882650,3.69113297,2709.2,2708.7,0.1405]
[1747973882854,3.69113297,2709.2,2708.8,14.496]
[1747973883232,3.69128138,2709.1,2708.8,14.496]
[1747973883915,3.6914138,2709.0,2708.8,14.496]
[1747973884116,3.69085406,2709.4,2708.8,14.496]
[1747973884351,3.69120035,2709.2,2708.8,14.496]
[1747973885029,3.69049232,2709.7,2708.8,14.496]
[1747973885231,3.69153357,2709.0,2708.9,11.061]
[1747973885432,3.69188933,2708.7,2708.6,11.061]
[1747973885631,3.69194417,2708.6,2708.5,23.926]
[1747973885843,3.69167635,2708.8,2708.5,38.422]
[1747973886044,3.69180787,2708.7,2708.6,8.0]
[1747973886654,3.69180787,2708.7,2708.6,22.497]
[1747973887859,3.69194417,2708.6,2708.5,15.926]
[1747973888031,3.69245174,2708.3,2707.9,0.1405]
[1747973888229,3.69243123,2708.3,2708.0,14.497]
[1747973888454,3.69257404,2708.2,2708.1,8.0]
[1747973888657,3.69257404,2708.2,2708.0,14.497]
[1747973888829,3.69257404,2708.2,2708.1,8.0]
[1747973889031,3.69257404,2708.2,2707.8,9.17230445]
[1747973889241,3.69276218,2708.0,2707.9,14.498]
[1747973889443,3.6926152,2708.2,2707.9,22.498]
[1747973889649,0.9736,2708.0,2707.4,14.498]
[1747973889863,3.6933921,2707.6,2707.4,14.498]
[1747973890046,3.69320967,2707.7,2707.5,8.0]
[1747973890425,3.69320967,2707.7,2707.4,14.498]
[1747973890720,3.69321355,2707.7,2707.6,8.0]
[1747973890955,3.69321355,2707.7,2707.5,14.498]
[1747973891470,3.69358055,2707.4,2707.3,14.498]
[1747973891649,3.69385342,2707.2,2707.1,0.02]
[1747973892664,0.9513,2707.5,2707.1,0.02]
[1747973892827,3.69373492,2707.3,2707.1,0.02]
[1747973893160,3.69385342,2707.2,2707.1,0.02]
[1747973894564,4.72205342,2707.2,2707.1,0.02]
[1747973896479,4.72205342,2707.2,2706.1,0.02]
[1747973896480,4.72341838,2706.2,2706.1,0.02]
[1747973896688,1.0282,2706.5,2706.1,0.02]
[1747973896889,1.0282,2707.1,2706.1,0.02]
[1747973897078,1.0282,2707.1,2706.3,8.0]
[1747973897293,3.69421772,2707.0,2706.4,3.6948495]
[1747973897606,1.0282,2707.1,2706.2,14.503]
[1747973897905,3.69435738,2706.9,2706.2,18.19813702]
[1747973898114,3.69412633,2707.0,2706.2,14.503]
[1747973898306,3.69441425,2706.8,2706.3,8.0]
[1747973898490,3.69456521,2706.7,2706.3,8.0]
[1747973898695,3.6944145,2706.8,2706.3,8.0]
[1747973898899,3.69449989,2706.8,2706.3,8.0]
[1747973899192,0.47223263,2707.0,2706.3,8.0]
[1747973899193,0.47223263,2707.0,2706.4,8.0]
[1747973899396,3.69452668,2706.8,2706.4,8.0]
[1747973900098,1.0282,2707.1,2706.3,8.0]
[1747973900297,3.69467228,2706.6,2706.3,22.495]
[1747973900680,3.69448534,2706.8,2706.3,22.495]
[1747973900881,3.6945503,2706.7,2706.3,22.495]
[1747973901114,3.69476235,2706.6,2706.3,22.495]
[1747973901282,1.0282,2707.1,2706.3,22.495]
[1747973901496,3.69487458,2706.5,2706.3,22.495]
[1747973902602,3.69494531,2706.4,2706.3,22.495]
[1747973904210,3.69439929,2706.8,2706.3,22.495]
[1747973904422,3.69494531,2706.4,2706.3,22.495]
[1747973904608,3.69512704,2706.3,2706.1,0.02]
[1747973904926,3.69508184,2706.3,2706.2,22.498]
[1747973908003,3.69521838,2706.2,2706.1,0.02]
[1747973910918,4.61491838,2706.2,2706.1,0.02]
[1747973911127,5.44591907,2706.2,2706.1,0.02]
[1747973913636,3.69521838,2706.2,2706.1,0.02]
[1747973916225,3.69557615,2706.0,2705.7,17.73910102]
[1747973916734,3.694717,2706.6,2705.9,3.79117979]
[1747973916935,3.694717,2706.6,2706.1,8.0956]
[1747973917136,3.694717,2706.6,2706.3,0.0956]
[1747973917501,4.67717585,2707.3,2706.3,0.0956]
[1747973917696,3.6948682,2706.5,2706.3,0.0956]
[1747973918023,3.69494531,2706.4,2706.3,0.0956]
[1747973918723,3.69436583,2706.9,2706.3,8.0956]
[1747973918914,3.69448021,2706.8,2706.3,8.0956]
[1747973919108,0.9834,2707.3,2706.3,8.0956]
[1747973919346,3.69491298,2706.5,2706.4,22.502]
[1747973919733,3.69491298,2706.5,2706.4,14.502]
[1747973920230,3.69494531,2706.4,2706.3,22.502]
[1747973920859,3.69494531,2706.4,2706.3,8.0]
[1747973921360,3.69494531,2706.4,2706.2,22.502]
[1747973921361,3.69508184,2706.3,2706.2,22.502]
[1747973922450,3.69498809,2706.4,2706.3,8.0]
[1747973923958,0.9176,2706.8,2705.9,0.0956]
[1747973923959,3.69453578,2706.7,2705.9,0.0956]
[1747973924258,3.69508184,2706.3,2706.2,8.0]
[1747973924886,3.69521838,2706.2,2706.1,22.502]
[1747973925189,3.69576465,2705.8,2705.7,3.33370102]
[1747973925379,3.69567244,2705.9,2705.7,17.83470102]
[1747973925576,3.69567244,2705.9,2705.8,8.0]
[1747973925877,3.69567244,2705.9,2705.7,17.83470102]
[1747973925878,3.69562825,2705.9,2705.7,17.83470102]
[1747973926050,3.69562825,2705.9,2705.8,8.0]
[1747973926239,3.69562825,2705.9,2705.8,22.501]
[1747973928082,3.69562825,2705.9,2705.8,8.0]
[1747973928276,3.69562825,2705.9,2705.8,22.502]
[1747973928456,3.69562825,2705.9,2705.8,8.0]
[1747973933697,3.69576465,2705.8,2705.7,3.23810102]
[1747973934000,3.69576465,2705.8,2705.7,11.23810102]
[1747973940893,5.42280394,2705.8,2705.7,11.23810102]
[1747973942503,4.43490394,2705.8,2705.7,11.23810102]
[1747973944609,3.69576465,2705.8,2705.7,11.23810102]
[1747973945210,0.9956,2706.4,2705.8,8.0]
[1747973945411,1.0343,2706.7,2706.1,8.0]
[1747973945709,3.69500452,2706.4,2706.2,14.495]
[1747973945872,3.69475979,2706.6,2706.2,14.495]
[1747973946076,1.0343,2706.7,2706.2,14.495]
[1747973946413,3.69454213,2706.7,2706.2,14.495]
[1747973946905,3.69468,2706.6,2706.2,14.495]
[1747973947108,0.9474,2706.5,2706.0,8.0]
[1747973947313,3.69494531,2706.4,2706.0,8.0]
[1747973947691,3.69530703,2706.2,2706.0,8.0]
[1747973948087,3.69535493,2706.1,2706.0,8.0]
[1747973948296,3.69550906,2706.0,2705.9,14.495]
[1747973948910,4.62875965,2706.1,2706.0,8.0]
[1747973948911,4.62879901,2706.1,2706.0,8.0]
[1747973949780,5.46120122,2706.1,2706.0,8.0]
[1747973951719,3.6954915,2706.0,2705.9,14.495]
[1747973953921,3.69562807,2705.9,2705.8,8.0]
[1747973954122,3.69555445,2706.0,2705.8,8.0]
[1747973955942,3.69560013,2706.0,2705.8,8.0]
[1747973956302,3.69562807,2705.9,2705.8,8.0]
[1747973956714,3.69555483,2706.0,2705.8,8.0]
[1747973956912,3.69505863,2706.4,2705.8,11.69575447]
[1747973957140,3.69509957,2706.3,2705.8,8.0]
[1747973957339,3.69509957,2706.3,2705.8,19.075]
[1747973957806,3.69535567,2706.1,2705.8,8.0]
[1747973958005,3.69535567,2706.1,2705.8,19.075]
[1747973958203,3.69539537,2706.1,2705.8,19.075]
[1747973958402,3.69539537,2706.1,2706.0,8.0]
[1747973959553,3.6954915,2706.0,2705.9,8.0]
[1747973959766,3.6954915,2706.0,2705.9,22.482]
[1747973959928,0.9978,2706.3,2705.9,22.482]
[1747973959929,4.69290573,2706.3,2705.9,22.482]
[1747973960248,4.69260879,2706.5,2705.9,22.482]
[1747973960449,0.46926088,2706.4,2705.9,22.482]
[1747973960654,3.69542956,2706.1,2705.9,22.482]
[1747973961660,3.69508184,2706.3,2705.9,22.482]
[1747973961966,0.9978,2707.0,2706.0,0.1545]
[1747973962171,3.69465649,2706.7,2706.1,8.0]
[1747973962463,3.6948888,2706.5,2706.0,8.1545]
[1747973962671,0.9978,2707.0,2706.1,8.0]
[1747973962830,3.69521838,2706.2,2706.1,8.0]
[1747973963431,3.69512728,2706.3,2706.1,8.0]
[1747973964069,3.69521838,2706.2,2705.8,8.1545]
[1747973964277,3.69521838,2706.2,2706.1,8.0]
[1747973964981,3.69527541,2706.2,2706.0,14.481]
[1747973965187,3.69537633,2706.1,2705.8,8.1545]
[1747973965389,3.69553616,2706.0,2705.8,14.481]
[1747973965553,0.73904899,2706.1,2705.8,8.0]
[1747973965747,3.69576465,2705.8,2705.7,17.71910102]
[1747973966658,4.65024784,2706.2,2705.7,17.71910102]
[1747973966851,3.69535493,2706.1,2705.7,17.71910102]
[1747973967052,3.69576465,2705.8,2705.7,17.71910102]
[1747973967248,3.69559253,2706.0,2705.7,17.71910102]
[1747973967883,3.69538937,2706.1,2705.7,17.71910102]
[1747973968062,4.65015849,2706.2,2705.7,17.71910102]
[1747973968262,3.69535965,2706.1,2705.7,17.71910102]
[1747973968777,3.69524252,2706.2,2705.7,17.71910102]
[1747973969087,3.69559571,2706.0,2705.7,17.71910102]
[1747973969286,3.69564665,2705.9,2705.7,17.71910102]
[1747973969511,3.69576465,2705.8,2705.7,3.23810102]
[1747973970715,4.69126465,2705.8,2705.7,3.23810102]
[1747973975218,3.69576465,2705.8,2705.7,3.23810102]
[1747973975724,3.69597807,2705.7,2705.2,14.482]
[1747973975918,3.69605723,2705.6,2705.2,14.482]
[1747973976914,3.69620776,2705.5,2704.9,3.69693566]
[1747973977116,3.6960946,2705.6,2705.0,29.25485535]
[1747973977303,3.6960946,2705.6,2705.0,3.64685535]
[1747973977623,3.69598637,2705.7,2704.9,11.69698319]
[1747973977932,3.69603793,2705.6,2705.0,3.69678514]
[1747973978629,3.69603793,2705.6,2705.1,8.0]
[1747973979494,3.69610087,2705.6,2705.1,8.0]
[1747973979700,3.69562807,2705.9,2705.1,1.43605513]
[1747973979895,14.483,2706.5,2705.1,3.696721]
[1747973980112,0.9732,2706.0,2704.6,9.17230445]
[1747973980312,3.69604154,2705.6,2705.1,8.0]
[1747973980536,3.6959529,2705.7,2705.1,11.69670964]
[1747973980751,3.69589661,2705.8,2705.1,3.69670293]
[1747973981037,3.69594798,2705.7,2705.1,3.69670293]
[1747973981214,3.69587072,2705.8,2705.3,8.0]
[1747973982032,3.69579792,2705.8,2705.3,3.69641425]
[1747973982235,3.69579792,2705.8,2705.2,11.69654214]
[1747973982741,3.69572701,2705.9,2705.3,3.69641547]
[1747973982936,4.66870266,2706.0,2705.3,3.69641547]
[1747973983238,3.69591843,2705.7,2705.2,3.69653649]
[1747973983410,3.69591843,2705.7,2705.0,3.69678059]
[1747973983937,3.69582899,2705.8,2704.8,7.60751473]
[1747973984148,3.69582899,2705.8,2705.2,3.69650367]
[1747973984310,3.69566531,2705.9,2705.3,3.69642928]
[1747973984521,3.69577669,2705.8,2705.2,3.69655722]
[1747973984961,5.13557126,2706.0,2705.3,3.69636363]
[1747973984962,3.6956503,2705.9,2705.3,3.69636363]
[1747973985122,3.6956503,2705.9,2705.3,14.483]
[1747973985123,3.69579601,2705.8,2705.3,14.483]
[1747973986048,3.69579601,2705.8,2705.4,8.0]
[1747973986451,3.69567131,2705.9,2705.4,8.0]
[1747973986839,3.69577917,2705.8,2705.4,8.0]
[1747973987223,3.69546541,2706.1,2705.6,8.0]
[1747973987447,3.69557694,2706.0,2705.4,11.69625375]
[1747973988664,3.69557694,2706.0,2705.6,8.0]
[1747973988837,3.69557694,2706.0,2705.4,8.0]
[1747973988838,0.9304,2706.3,2705.4,8.0]
[1747973989179,3.695026,2706.4,2705.9,8.0]
[1747973990128,3.69510213,2706.3,2705.9,8.0]
[1747973990334,3.69600671,2705.7,2705.5,8.0]
[1747973990563,3.69590124,2705.7,2705.5,8.0]
[1747973991247,3.69603784,2705.6,2705.5,8.0]
[1747973991448,3.69595598,2705.7,2705.5,8.0]
[1747973991761,4.62622394,2705.8,2705.5,8.0]
[1747973992144,4.62616553,2705.8,2705.5,8.0]
[1747973992352,0.9304,2705.8,2705.5,8.0]
[1747973992737,3.6960661,2705.6,2705.2,8.0]
[1747973992938,3.6960661,2705.6,2705.1,8.0]
[1747973993154,3.69619495,2705.5,2705.1,8.0]
[1747973993534,3.69607374,2705.6,2705.1,8.0]
[1747973993936,3.69617743,2705.5,2705.1,8.0]
[1747973996700,3.69639739,2705.4,2705.1,8.0]
[1747973997410,0.9304,2705.8,2705.1,8.0]
[1747973997710,3.69624967,2705.5,2705.1,8.0]
[1747973998087,3.69631898,2705.4,2704.8,15.949]
[1747973998293,0.9304,2705.8,2704.9,14.476]
[1747973998463,3.69637814,2705.4,2705.0,8.0]
[1747973999257,3.69624977,2705.5,2705.0,8.0]
[1747973999458,3.6963216,2705.4,2705.0,8.0]
[1747974000418,3.69590124,2705.7,2705.0,8.0]
[1747974000619,3.696721,2705.1,2705.0,8.0]
[1747974000786,3.69660991,2705.2,2705.0,8.0]
[1747974000984,3.696721,2705.1,2705.0,8.0]
[1747974001832,3.6966474,2705.2,2705.0,8.0]
[1747974002333,3.69658435,2705.2,2704.3,14.477]
[1747974002629,3.69767785,2704.4,2704.2,1.17230445]
[1747974002794,3.69748934,2704.6,2704.2,1.17230445]
[1747974002996,3.69748934,2704.6,2704.2,9.17230445]
[1747974003732,0.9409,2704.9,2704.2,9.17230445]
[1747974003733,3.69732547,2704.7,2704.2,9.17230445]
[1747974003941,0.9169,2705.2,2704.2,9.17230445]
[1747974004144,20.08520113,2706.7,2704.1,14.497]
[1747974004145,0.9405,2705.9,2705.2,3.69648034]
[1747974004433,3.69607776,2705.6,2705.2,14.477]
[1747974004735,3.69594716,2705.7,2705.2,14.477]
[1747974004897,4.52915794,2705.7,2705.2,14.477]
[1747974005793,0.9405,2705.9,2705.3,8.0]
[1747974006001,3.69574049,2705.9,2705.3,11.69641594]
[1747974006418,0.9405,2706.3,2705.2,18.17353747]
[1747974006713,3.69481641,2706.5,2705.5,8.0]
[1747974006914,3.69477333,2706.6,2705.9,3.69551957]
[1747974007086,3.69471166,2706.6,2706.1,8.0]
[1747974007488,3.69457861,2706.7,2706.1,8.0]
[1747974007819,4.57817713,2706.8,2706.1,8.0]
[1747974008015,3.69447713,2706.8,2706.2,3.69514981]
[1747974008321,3.71427125,2706.9,2706.3,3.69506978]
[1747974008509,0.02,2706.9,2706.4,3.69493433]
[1747974008696,0.02,2706.9,2706.5,14.477]
[1747974009103,0.02,2706.9,2706.5,18.17179995]
[1747974009298,0.02,2706.9,2706.6,3.69462787]
[1747974009520,0.02,2706.9,2706.7,3.6945018]
[1747974009734,0.02,2706.9,2706.6,8.0]
[1747974009735,0.02,2706.9,2706.8,8.0]
[1747974010041,0.02,2706.9,2706.8,11.69439929]
[1747974011106,0.02,2706.9,2706.8,8.0]
[1747974011305,0.02,2706.9,2706.8,22.476]
[1747974011737,0.02,2706.9,2706.8,26.17039929]
[1747974012565,0.02,2706.9,2706.8,11.69439929]
[1747974012852,0.02,2706.9,2705.5,15.91530507]
[1747974013052,3.71429658,2706.9,2705.7,15.946]
[1747974013209,3.694412,2706.8,2705.8,19.073]
[1747974013410,0.02,2706.9,2706.2,8.0]
[1747974014542,3.71429121,2706.9,2706.2,8.0]
[1747974015985,0.02,2706.9,2706.2,8.0]
[1747974016135,3.71431744,2706.9,2706.2,8.0]
[1747974016490,0.02,2706.9,2706.2,8.0]
[1747974017173,3.69440645,2706.8,2706.2,8.0]
[1747974017670,0.02,2706.9,2706.2,8.0]
[1747974018374,3.69447261,2706.8,2706.2,8.0]
[1747974018871,3.69454461,2706.7,2706.2,8.0]
[1747974019258,3.69444163,2706.8,2706.2,8.0]
[1747974019782,3.69444163,2706.8,2706.2,8.58642115]
[1747974019983,3.69444163,2706.8,2706.3,14.472]
[1747974020170,3.69444163,2706.8,2706.2,0.58642115]
[1747974020373,3.69444163,2706.8,2706.4,8.0]
[1747974020574,3.69444163,2706.8,2706.2,0.58642115]
[1747974020773,3.69444163,2706.8,2706.3,14.463]
[1747974020989,3.69444163,2706.8,2706.2,0.58642115]
[1747974021161,0.02,2706.9,2706.4,8.0]
[1747974021362,0.02,2706.9,2706.5,15.263]
[1747974021575,3.6944843,2706.8,2706.6,8.0]
[1747974022286,3.6944843,2706.8,2706.7,14.463]
[1747974022589,3.6944843,2706.8,2706.0,3.69546577]
[1747974022787,3.71428291,2706.9,2706.0,0.55]
[1747974022976,3.6946097,2706.7,2706.1,14.463]
[1747974023291,3.69483927,2706.5,2706.2,14.463]
[1747974023487,3.69458074,2706.7,2706.2,14.463]
[1747974023687,3.69467779,2706.6,2706.2,14.463]
[1747974024365,3.69467779,2706.6,2706.0,0.55]
[1747974024566,0.8655,2706.8,2705.7,15.946]
[1747974024751,0.8655,2706.8,2705.8,14.462]
[1747974024953,4.55991857,2706.8,2705.9,8.0]
[1747974025158,3.69469505,2706.6,2705.9,8.0]
[1747974025655,3.69482299,2706.5,2705.9,8.0]
[1747974026095,0.02,2706.9,2705.9,8.0]
[1747974026256,0.02,2706.9,2705.8,14.462]
[1747974026257,0.02,2706.9,2706.1,8.0]
[1747974026451,3.71427723,2706.9,2706.1,3.69529637]
[1747974026652,3.71427723,2706.9,2706.0,8.55]
[1747974026653,0.02,2706.9,2706.6,8.0]
[1747974026865,0.02,2706.9,2706.8,8.0]
[1747974027952,4.65476806,2707.9,2706.8,8.0]
[1747974028159,3.69371792,2707.3,2706.8,8.0]
[1747974028365,3.69344909,2707.5,2706.8,8.0]
[1747974028563,3.69303493,2707.8,2707.0,8.0]
[1747974028564,3.69405938,2707.1,2707.0,8.0]
[1747974029174,3.69324275,2707.7,2707.0,8.0]
[1747974029359,3.69367361,2707.4,2707.0,8.0]
[1747974029565,3.69379615,2707.3,2707.0,8.0]
[1747974029991,0.46550427,2707.7,2707.0,8.0]
[1747974030167,3.69398987,2707.1,2707.0,8.0]
[1747974030367,3.69398987,2707.1,2707.0,22.461]
[1747974031593,3.69390948,2707.2,2707.0,22.461]
[1747974032701,3.69359363,2707.4,2707.0,22.461]
[1747974033211,0.8813,2707.6,2707.0,22.461]
[1747974033427,3.69391417,2707.2,2707.0,22.461]
[1747974034019,3.69398987,2707.1,2707.0,22.461]
[1747974035797,3.69398987,2707.1,2707.0,8.0]
[1747974036002,3.69398987,2707.1,2706.2,1.72230445]
[1747974036003,3.69439929,2706.8,2706.6,14.46]
[1747974036215,3.69495185,2706.4,2706.2,1.17230445]
[1747974036415,3.69495185,2706.4,2706.3,14.46]
[1747974036722,3.6951679,2706.3,2705.9,1.17230445]
[1747974036884,3.69498945,2706.4,2706.0,14.46]
[1747974037084,3.69510133,2706.3,2706.1,8.0]
[1747974037291,0.9501,2706.6,2705.9,1.17230445]
[1747974037527,3.69520277,2706.3,2706.0,14.46]
[1747974037726,3.69522826,2706.2,2706.0,14.46]
[1747974037931,3.69537179,2706.1,2705.9,8.0]
[1747974038231,3.69508618,2706.3,2706.2,8.0]
[1747974038232,3.69508184,2706.3,2706.2,8.0]
[1747974039508,3.69507904,2706.4,2706.2,8.0]
[1747974039723,3.69508184,2706.3,2706.2,8.0]
[1747974040757,3.69484676,2706.5,2706.2,8.0]
[1747974041250,3.69494531,2706.4,2706.2,8.0]
[1747974041857,3.69508184,2706.3,2706.2,8.0]
[1747974043323,3.69508184,2706.3,2705.9,8.0]
[1747974043525,3.69508184,2706.3,2706.0,14.462]
[1747974044035,3.69500864,2706.4,2706.0,14.462]
[1747974045109,3.69500864,2706.4,2705.9,8.0]
[1747974045321,3.69500864,2706.4,2705.8,15.94]
[1747974045482,3.69500864,2706.4,2705.9,22.462]
[1747974045868,3.69504732,2706.4,2705.9,22.462]
[1747974046265,3.69504732,2706.4,2705.9,8.0]
[1747974046599,3.6940982,2707.1,2706.1,8.0]
[1747974046759,4.55475669,2707.2,2706.1,11.69532509]
[1747974046760,0.8608,2707.2,2706.1,11.69532509]
[1747974046962,0.8608,2707.2,2706.2,3.69520865]
[1747974047174,4.55467049,2707.2,2706.3,11.071]
[1747974047387,3.69398987,2707.1,2706.3,11.071]
[1747974047574,3.69415367,2707.0,2706.3,11.071]
[1747974047798,3.69430259,2706.9,2706.3,11.071]
[1747974047983,3.69430259,2706.9,2705.9,0.55]
[1747974047984,0.8608,2707.2,2705.9,8.0]
[1747974048188,3.69438548,2706.9,2706.1,8.0]
[1747974048583,0.8608,2707.2,2706.1,8.0]
[1747974048779,0.8608,2707.2,2706.0,1.17230445]
[1747974049000,0.8608,2707.2,2706.2,8.0]
[1747974049196,3.69424766,2707.0,2706.0,9.17230445]
[1747974049525,3.69416102,2707.0,2706.3,8.0]
[1747974049893,3.69416102,2707.0,2706.5,8.0]
[1747974050099,3.69413493,2707.0,2706.6,14.461]
[1747974050294,3.69428457,2706.9,2706.2,8.0]
[1747974050498,0.8608,2707.2,2706.0,1.17230445]
[1747974050698,3.69424463,2707.0,2706.2,8.0]
[1747974050993,3.69424463,2707.0,2706.3,14.452]
[1747974051602,3.69424463,2707.0,2706.5,8.0]
[1747974052011,3.69421214,2707.0,2706.5,8.0]
[1747974052215,3.69427604,2706.9,2706.5,8.0]
[1747974052601,3.69417457,2707.0,2706.6,14.452]
[1747974053009,3.69417457,2707.0,2706.1,8.0]
[1747974053209,3.6942628,2706.9,2706.3,8.0]
[1747974053410,3.69427097,2706.9,2706.3,8.0]
[1747974053619,3.69427097,2706.9,2706.5,8.0]
[1747974053946,3.69436729,2706.9,2706.5,8.0]
[1747974054585,3.69436729,2706.9,2706.6,14.452]
[1747974054787,3.69436729,2706.9,2706.7,14.452]
[1747974055488,3.69436729,2706.9,2706.8,14.452]
[1747974055708,3.69444425,2706.8,2706.2,8.0]
[1747974055920,3.6942661,2706.9,2706.3,14.452]
[1747974057326,4.55470329,2707.2,2706.4,3.69490878]
[1747974057532,3.69402422,2707.1,2706.5,8.0]
[1747974058025,3.69426594,2706.9,2706.5,8.0]
[1747974058231,0.73882744,2706.9,2705.9,9.17230445]
[1747974058426,3.69507805,2706.4,2705.9,1.17230445]
[1747974058614,0.9494,2706.8,2706.1,8.0]
[1747974059004,3.69475015,2706.6,2706.3,8.0]
[1747974059217,3.69490462,2706.5,2706.3,8.0]
[1747974060338,4.64386072,2706.8,2706.3,8.0]
[1747974060488,0.9494,2707.0,2706.3,8.0]
[1747974060834,3.69450436,2706.8,2706.3,8.0]
[1747974061014,3.69450436,2706.8,2706.4,14.452]
[1747974061217,0.9494,2707.0,2706.5,8.0]
[1747974061415,3.69476009,2706.6,2706.5,22.452]
[1747974062135,3.69371698,2707.3,2706.5,22.452]
[1747974062335,3.69391705,2707.2,2706.5,22.452]
[1747974062508,3.69399155,2707.1,2706.5,22.452]
[1747974063733,3.69388041,2707.2,2706.5,22.452]
[1747974064034,3.69402142,2707.1,2706.5,22.452]
[1747974064527,3.69390206,2707.2,2706.5,22.452]
[1747974064719,3.69396641,2707.2,2706.5,22.452]
[1747974064919,0.9271,2707.4,2706.5,22.452]
[1747974065238,3.6938099,2707.3,2706.5,22.452]
[1747974065424,3.69377307,2707.3,2706.5,22.452]
[1747974065598,4.63561111,2707.6,2706.6,11.69457997]
[1747974066006,0.9423,2707.6,2706.6,8.0]
[1747974066208,3.69407718,2707.1,2706.4,8.0]
[1747974066408,3.69413553,2707.0,2706.6,8.0]
[1747974066639,3.69404928,2707.1,2706.8,8.0]
[1747974066951,3.69390624,2707.2,2706.8,8.0]
[1747974067437,0.9423,2707.6,2706.4,3.69484723]
[1747974067438,3.69347435,2707.5,2706.9,14.452]
[1747974067622,3.69358055,2707.4,2707.0,14.452]
[1747974067833,0.9423,2707.6,2707.0,14.452]
[1747974068144,3.69346022,2707.5,2707.0,14.452]
[1747974068298,3.69366416,2707.4,2707.0,14.452]
[1747974068798,3.69375399,2707.3,2707.0,14.452]
[1747974069395,3.69346871,2707.5,2707.0,14.452]
[1747974069616,3.69381904,2707.3,2707.0,14.452]
[1747974070036,3.69389172,2707.2,2707.0,14.452]
[1747974070260,0.9423,2707.6,2707.0,14.452]
[1747974070461,3.69370923,2707.4,2706.4,1.17230445]
[1747974070658,3.69361696,2707.4,2706.6,14.76366057]
[1747974071033,3.69375912,2707.3,2706.6,11.069]
[1747974071660,3.69344513,2707.5,2706.6,11.069]
[1747974071859,3.69372521,2707.3,2706.6,11.069]
[1747974072455,0.9423,2707.6,2706.6,8.0]
[1747974072456,3.69405969,2707.1,2706.6,8.0]
[1747974072824,3.69405969,2707.1,2706.7,14.45]
[1747974073227,3.6941375,2707.0,2706.8,14.45]
[1747974073547,3.69412148,2707.1,2706.9,14.45]
[1747974073859,3.69412148,2707.1,2706.3,12.86729837]
[1747974074047,3.69412148,2707.1,2706.5,8.0]
[1747974074466,3.69412148,2707.1,2706.3,4.86729837]
[1747974074635,3.69412148,2707.1,2706.5,8.0]
[1747974074839,3.69412148,2707.1,2706.6,14.45]
[1747974075356,3.69412148,2707.1,2706.4,3.69493281]
[1747974075557,3.69389948,2707.2,2706.4,3.69493281]
[1747974075771,3.69389948,2707.2,2706.6,8.0]
[1747974076558,3.69380568,2707.3,2706.6,8.0]
[1747974076961,3.69387075,2707.2,2706.6,8.0]
[1747974077877,4.63563521,2707.6,2706.6,8.0]
[1747974078049,0.9511,2707.3,2706.8,8.0]
[1747974078390,0.9511,2707.3,2706.8,14.45]
[1747974078676,4.6453628,2706.9,2706.8,14.45]
[1747974079390,3.6942628,2706.9,2706.8,14.45]
[1747974079576,3.69461104,2706.7,2706.1,8.0]
[1747974079738,3.69461104,2706.7,2706.3,8.0]
[1747974080258,3.6942628,2706.9,2706.3,8.0]
[1747974080452,3.69418173,2707.0,2706.3,11.69504109]
[1747974080804,3.69389887,2707.2,2706.5,3.69480879]
[1747974081242,4.57173945,2707.3,2706.3,8.0]
[1747974081576,4.57174263,2707.3,2706.7,3.69453003]
[1747974081733,0.878,2707.3,2706.8,14.442]
[1747974082075,4.57181456,2707.3,2706.8,14.442]
[1747974082288,3.69365871,2707.4,2706.8,14.442]
[1747974082492,3.69371984,2707.3,2706.8,14.442]
[1747974083488,3.69384052,2707.3,2706.8,14.442]
[1747974085276,3.69384052,2707.3,2706.9,8.0]
[1747974086875,3.69385806,2707.2,2706.9,8.0]
[1747974087078,0.9394,2707.1,2706.4,1.17230445]
[1747974087282,0.9394,2707.1,2706.6,8.0]
[1747974087283,3.6942628,2706.9,2706.6,8.0]
[1747974087467,3.6942628,2706.9,2706.8,8.0]
[1747974087654,3.6942628,2706.9,2706.4,1.17230445]
[1747974087982,3.69431731,2706.9,2706.6,8.0]
[1747974088373,0.9049,2707.8,2706.6,8.0]
[1747974088576,3.69373629,2707.3,2706.6,8.0]
[1747974089176,3.69362654,2707.4,2706.7,3.69440614]
[1747974089481,3.69362654,2707.4,2706.6,11.69462701]
[1747974089679,3.69379705,2707.3,2706.5,14.441]
[1747974089987,3.69379705,2707.3,2706.6,3.69467228]
[1747974090151,3.69379705,2707.3,2706.7,3.6945181]
[1747974090351,3.69387652,2707.2,2706.6,3.69462261]
[1747974090554,0.9049,2707.4,2706.5,15.61330445]
[1747974090752,3.69387262,2707.2,2706.6,3.69458476]
[1747974091271,3.69387262,2707.2,2706.5,15.61330445]
[1747974091272,3.69345951,2707.5,2706.5,15.61330445]
[1747974091475,3.69360445,2707.4,2706.9,3.69415244]
[1747974091678,3.69344413,2707.5,2707.0,14.441]
[1747974091880,1.27424441,2707.4,2706.5,9.17230445]
[1747974092188,1.27424441,2707.4,2706.7,8.0]
[1747974092394,3.69411224,2707.1,2706.7,8.0]
[1747974092990,3.69411224,2707.1,2706.9,8.0]
[1747974093694,0.8947,2707.1,2706.4,1.17230445]
[1747974093999,4.64200879,2706.5,2706.4,15.61330445]
[1747974094358,4.64200879,2706.5,2706.4,1.17230445]
[1747974095259,4.57202311,2706.0,2705.5,8.0]
[1747974095761,3.69564512,2705.9,2705.4,14.441]
[1747974096361,3.69564512,2705.9,2705.5,8.0]